bitfinex-derivatives/quotes_ETHF0:USTF0_20251008
["timestamp","ask_amount","ask_price","bid_price","bid_amount"]
[1759950768915,1.06109994,4511.9,4511.8,0.39886]
[1759950769117,1.06109994,4511.9,4511.8,1.40726]
[1759950769118,0.44679994,4511.9,4511.8,1.40726]
[1759950769615,0.7801,4512.9,4512.8,0.70607]
[1759950769815,0.7801,4512.9,4512.8,1.02407]
[1759950769816,0.4661,4512.9,4512.8,1.02407]
[1759950770017,0.314,4512.4,4512.3,0.39881]
[1759950770315,0.6143,4512.4,4511.2,0.3831]
[1759950770521,0.6143,4512.4,4511.1,0.99731]
[1759950770522,0.1729,4512.5,4511.1,0.99731]
[1759950770716,0.4441,4512.4,4511.1,0.99988874]
[1759950770913,1.23327348,4512.5,4512.4,0.3073]
[1759950771119,1.23327348,4512.5,4511.6,0.3831]
[1759950771312,1.23327348,4512.5,4511.3,4.5455411]
[1759950771313,0.00197348,4512.5,4512.4,1.0084]
[1759950771819,0.00197348,4512.5,4512.4,0.6253]
[1759950772020,0.00197348,4512.5,4512.4,4.5566711]
[1759950773010,0.00197348,4512.5,4512.4,1.0084]
[1759950773216,0.93297348,4512.5,4512.4,0.6253]
[1759950775125,1.23327348,4512.5,4512.0,0.39884]
[1759950775318,1.23327348,4512.5,4512.1,0.39883]
[1759950775724,1.23327348,4512.5,4511.5,0.3831]
[1759950775725,0.4869,4512.0,4511.9,0.39885]
[1759950776026,0.931,4512.0,4511.9,0.70615]
[1759950776525,0.931,4512.0,4511.9,1.02415]
[1759950779029,1.2313,4512.0,4511.9,1.02415]
[1759950781332,0.617,4512.0,4511.9,1.02415]
[1759950781532,0.617,4512.0,4511.9,1.40725]
[1759950781733,1.2313,4512.0,4511.9,1.02415]
[1759950782030,1.2313,4512.0,4511.9,0.70615]
[1759950782229,1.2313,4512.0,4511.8,0.39886]
[1759950783427,0.4441,4511.9,4511.8,1.40726]
[1759950783628,1.23327348,4512.5,4512.4,0.70611]
[1759950788337,1.23327348,4512.5,4512.4,0.39881]
[1759950788842,1.23327348,4512.5,4512.4,0.69001]
[1759950789043,1.23327348,4512.5,4512.4,0.97581]
[1759950789338,0.93297348,4512.5,4512.4,1.34511]
[1759950789732,1.23557348,4512.5,4512.4,0.97581]
[1759950793047,0.00197348,4512.5,4512.4,1.34511]
[1759950793239,0.00197348,4512.5,4512.4,6.34511]
[1759950797549,0.00197348,4512.5,4512.4,6.56811]
[1759950797851,0.00197348,4512.5,4512.4,6.34511]
[1759950798147,1.20767348,4512.5,4512.0,1.19382397]
[1759950798348,0.175,4511.5,4511.2,1.19382397]
[1759950798554,1.0307,4511.3,4511.2,0.39892]
[1759950798752,1.48901817,4511.3,4511.0,0.39893]
[1759950799050,0.4316,4511.2,4511.1,0.94887874]
[1759950799248,1.0307,4511.2,4511.1,0.29377874]
[1759950799448,1.0307,4511.2,4511.1,0.00257874]
[1759950799950,0.7281,4511.2,4511.1,0.29377874]
[1759950800250,0.7281,4511.2,4511.1,0.57957874]
[1759950800552,1.0307,4511.2,4511.1,0.57957874]
[1759950800752,1.0307,4511.2,4511.1,0.00257874]
[1759950800753,6.0307,4511.2,4511.1,0.00257874]
[1759950800946,6.48873429,4511.2,4511.1,0.00257874]
[1759950803045,0.175,4510.0,4509.8,0.39904]
[1759950803255,1.0307,4509.9,4509.8,0.69024]
[1759950803752,0.4316,4509.8,4509.7,0.39904]
[1759950804057,1.0307,4509.8,4509.7,0.40107441]
[1759950804351,1.0307,4509.8,4509.7,0.00203441]
[1759950805154,0.39906,4509.6,4509.1,0.3991]
[1759950805357,0.5991,4509.8,4508.5,1.56312397]
[1759950805358,0.9971,4509.5,4509.4,0.2912]
[1759950805855,1.4287,4509.5,4509.4,0.2912]
[1759950806156,1.4287,4509.5,4509.4,0.29324163]
[1759950806851,4.24757348,4509.5,4509.4,0.00204163]
[1759950807452,1.0307,4508.4,4508.3,0.69037]
[1759950807758,1.0307,4508.4,4508.1,0.39919]
[1759950807952,1.0307,4508.4,4508.2,0.39918]
[1759950807953,0.4316,4508.3,4508.2,0.39918]
[1759950808155,1.0307,4508.3,4508.2,0.69038]
[1759950808456,1.03244463,4508.3,4508.2,0.69314043]
[1759950808646,1.03244463,4508.3,4508.2,0.00276043]
[1759950809457,1.03244463,4508.3,4508.2,0.29396043]
[1759950810556,1.03244463,4508.3,4508.2,0.00276043]
[1759950811462,0.72984463,4508.3,4508.2,0.94906043]
[1759950811760,0.43334463,4508.3,4508.2,0.94906043]
[1759950812257,0.00174463,4508.3,4508.2,0.94906043]
[1759950817860,0.00174463,4508.3,4508.2,1.34824043]
[1759950819462,0.4488,4509.3,4508.9,0.5877]
[1759950819667,1.0272,4509.3,4509.2,0.98679]
[1759950819965,1.2272,4509.3,4509.2,0.98679]
[1759950820564,1.22973462,4509.3,4509.2,0.98679]
[1759950824766,1.22973462,4509.3,4509.2,0.69509]
[1759950827469,1.22973462,4509.3,4508.4,0.97586]
[1759950827470,1.1972,4508.5,4508.4,0.97586]
[1759950828167,0.6033,4508.5,4508.4,1.32756]
[1759950829765,1.1972,4508.5,4508.4,0.5767]
[1759950829971,1.0274,4508.3,4508.2,0.40194043]
[1759950830161,1.42657,4508.3,4508.2,0.00276043]
[1759950831873,1.0274,4508.3,4508.2,0.40194043]
[1759950832069,1.0274,4508.3,4508.2,0.69674043]
[1759950832371,1.42657,4508.3,4508.2,0.00276043]
[1759950832570,1.42657,4508.3,4508.2,0.40194043]
[1759950833073,1.64957,4508.3,4508.2,0.40194043]
[1759950834270,1.2504,4508.3,4508.2,0.40194043]
[1759950835270,1.2504,4508.3,4508.2,0.69674043]
[1759950835769,1.0274,4508.3,4508.2,0.69674043]
[1759950836079,0.4335,4508.3,4508.2,1.33034043]
[1759950836273,0.7426,4508.3,4508.2,0.97864043]
[1759950837177,0.4335,4508.3,4508.2,1.33034043]
[1759950837373,0.7426,4508.3,4508.2,1.33034043]
[1759950838977,0.4335,4508.3,4508.2,1.33034043]
[1759950841384,0.7426,4508.3,4508.2,1.33034043]
[1759950842281,0.4335,4508.3,4508.2,1.33034043]
[1759950842575,0.4335,4508.3,4508.2,2.5241644]
[1759950842972,0.7426,4508.3,4508.2,2.1724644]
[1759950843174,1.0274,4508.3,4508.2,0.00276043]
[1759950843375,1.0274,4508.3,4508.2,0.29756043]
[1759950843681,1.0274,4508.3,4508.2,0.57946043]
[1759950845084,0.4335,4508.3,4508.2,0.93116043]
[1759950846085,1.0274,4508.3,4508.2,0.29756043]
[1759950846280,1.0274,4508.3,4508.2,0.00276043]
[1759950847183,1.0274,4508.3,4508.2,0.40194043]
[1759950847683,1.42657,4508.3,4508.2,0.00276043]
[1759950847980,1.42657,4508.3,4508.2,0.40194043]
[1759950848978,1.0274,4508.3,4508.2,0.40194043]
[1759950849174,1.0274,4508.3,4508.2,0.70254043]
[1759950849681,1.0274,4508.3,4508.2,0.40194043]
[1759950849982,4.25412095,4508.3,4508.2,0.00276043]
[1759950850280,4.25412095,4508.3,4508.2,0.40194043]
[1759950851888,9.25412095,4508.3,4508.2,0.40194043]
[1759950852286,9.25412095,4508.3,4508.2,0.00276043]
[1759950852684,0.4224,4508.3,4508.2,1.61826369]
[1759950852879,0.4224,4508.3,4508.2,1.95666369]
[1759950855093,0.7225,4508.3,4508.2,1.95666369]
[1759950855693,0.7225,4508.3,4508.2,1.61826369]
[1759950855993,0.9985,4508.3,4508.2,0.58906043]
[1759950856396,0.9985,4508.3,4508.2,0.30336043]
[1759950857298,0.9985,4508.3,4508.2,0.00276043]
[1759950858692,4.2884935,4508.3,4508.2,0.40194043]
[1759950860594,4.2884935,4508.3,4507.6,1.19382397]
[1759950860899,0.39936,4506.2,4506.1,2.75436501]
[1759950861099,1.02920326,4506.3,4505.7,0.7214]
[1759950861296,4.03912168,4506.2,4506.0,0.1771]
[1759950861497,0.62236,4506.2,4506.0,0.1771]
[1759950861798,3.76022127,4506.1,4506.0,0.00183216]
[1759950861999,0.39941,4505.7,4505.4,0.39943]
[1759950862302,3.07562184,4505.6,4505.4,0.39943]
[1759950862494,2.85262184,4505.6,4505.5,1.1842]
[1759950862801,0.39944,4505.4,4505.1,0.39945]
[1759950863000,0.39944,4505.4,4505.1,0.40132326]
[1759950863205,2.86321405,4505.3,4505.1,0.40132326]
[1759950863396,4.29185731,4505.3,4505.1,0.00187326]
[1759950863793,0.223,4505.2,4505.1,0.00187326]
[1759950863998,3.16080049,4505.2,4505.1,0.00187326]
[1759950864298,2.93780049,4505.2,4505.1,0.00187326]
[1759950864507,2.93780049,4505.2,4505.1,0.42267326]
[1759950864805,0.223,4505.2,4505.1,0.42267326]
[1759950865197,3.13073399,4505.2,4505.1,0.42267326]
[1759950866897,2.90773399,4505.2,4505.1,0.42267326]
[1759950867099,3.13073399,4505.2,4505.1,0.72327326]
[1759950868204,2.90773399,4505.2,4505.1,0.42267326]
[1759950868406,3.13073399,4505.2,4505.1,0.42267326]
[1759950870209,3.13073399,4505.2,4505.1,0.00187326]
[1759950870406,3.13073399,4505.2,4505.1,0.42267326]
[1759950871399,3.13073399,4505.2,4505.1,0.00187326]
[1759950873307,8.80773399,4505.2,4502.8,0.4208]
[1759950873615,8.80773399,4505.2,4504.1,0.39954]
[1759950873616,0.74211945,4505.1,4504.1,0.39954]
[1759950873811,0.91858945,4505.0,4504.0,0.5979]
[1759950874118,0.39949,4504.8,4504.0,0.5979]
[1759950874321,0.39951,4504.5,4504.2,0.39953]
[1759950874628,3.08985313,4504.4,4504.2,0.4208]
[1759950874808,3.48938313,4504.4,4504.2,0.4208]
[1759950875009,3.48938313,4504.4,4504.1,0.89767173]
[1759950875010,0.39953,4504.3,4504.1,0.49813173]
[1759950875412,2.90564331,4504.2,4504.1,0.49813173]
[1759950875811,2.90564331,4504.2,4504.1,0.91893173]
[1759950876416,2.87132144,4504.3,4504.2,0.82034]
[1759950876618,0.223,4504.4,4504.2,0.82034]
[1759950876818,0.223,4504.4,4504.3,0.4208]
[1759950877222,3.06598529,4504.4,4504.3,0.4208]
[1759950878223,0.223,4504.4,4504.3,1.0071]
[1759950879422,0.223,4504.8,4504.6,0.4598]
[1759950879922,2.84450762,4504.7,4504.6,0.4598]
[1759950880325,2.84450762,4504.7,4504.6,0.8593]
[1759950880518,2.84450762,4504.7,4504.6,1.1742]
[1759950880816,0.223,4504.8,4504.7,0.7759]
[1759950881022,34.635,4505.5,4505.4,0.39943]
[1759950881222,34.858,4505.5,4505.4,0.85923]
[1759950881418,37.76646412,4505.5,4505.4,0.85923]
[1759950882122,2.90846412,4505.5,4505.4,1.67473431]
[1759950882615,0.223,4505.8,4505.7,0.3994]
[1759950882819,0.223,4505.8,4505.7,1.1295]
[1759950883018,3.15050941,4505.8,4505.7,1.1295]
[1759950883221,0.223,4505.8,4505.7,1.1295]
[1759950883528,0.00256768,4506.1,4506.0,1.62518]
[1759950885720,0.00256768,4506.1,4506.0,1.02068]
[1759950886523,0.00256768,4506.1,4506.0,1.31368]
[1759950887222,0.00256768,4506.1,4506.0,1.62518]
[1759950889121,0.52410803,4506.1,4506.0,1.62518]
[1759950889717,0.00256768,4506.1,4506.0,1.62518]
[1759950890028,0.00256768,4506.1,4506.0,6.62518]
[1759950892230,0.00256768,4506.1,4506.0,1.31368]
[1759950892432,0.00256768,4506.1,4506.0,1.02068]
[1759950892433,0.52480592,4506.1,4506.0,1.02068]
[1759950892934,0.52480592,4506.1,4506.0,1.31368]
[1759950894133,0.00256768,4506.1,4506.0,1.31368]
[1759950896833,0.52461405,4506.1,4506.0,1.31368]
[1759950897033,0.39939,4505.9,4505.8,0.39939]
[1759950897230,0.52204637,4506.0,4505.8,0.39939]
[1759950897430,3.43740372,4505.9,4505.8,1.12949]
[1759950897630,0.52204637,4505.9,4505.8,1.44099]
[1759950898427,0.52204637,4505.9,4505.8,1.62440115]
[1759950898627,0.52204637,4505.9,4505.8,1.33140115]
[1759950899335,0.52204637,4505.9,4505.8,1.62440115]
[1759950900029,0.52204637,4505.9,4505.8,1.93590115]
[1759950900538,0.00256768,4506.1,4506.0,1.62518]
[1759950900730,0.223,4506.8,4506.7,1.44091]
[1759950900933,0.74472502,4506.8,4506.7,1.44091]
[1759950901132,0.74472502,4506.8,4506.7,0.83641]
[1759950901330,1.77493655,4506.8,4506.6,0.39932]
[1759950901529,0.52172502,4506.7,4506.3,0.39934]
[1759950901734,1.03021153,4506.3,4506.2,0.39936]
[1759950901935,1.55193655,4506.3,4506.2,0.39936]
[1759950902238,6.55193655,4506.3,4506.2,0.39936]
[1759950902632,1.55193655,4506.3,4506.2,0.39936]
[1759950903835,0.52172502,4506.3,4506.2,1.32768402]
[1759950904128,1.03021153,4506.6,4506.5,1.02063]
[1759950904331,1.55206681,4506.6,4506.5,1.02063]
[1759950904543,4.49733943,4506.6,4506.5,1.02063]
[1759950906138,3.4671279,4506.6,4506.5,1.31363]
[1759950906332,0.52185528,4506.6,4506.5,1.62513]
[1759950907138,0.52185528,4506.6,4506.5,1.02063]
[1759950907942,0.52185528,4506.6,4506.5,1.62513]
[1759950908642,0.00158105,4506.7,4506.5,1.62513]
[1759950908842,0.00158105,4506.7,4506.6,1.0468]
[1759950909138,0.223,4507.4,4507.3,1.94633678]
[1759950909345,34.637,4507.8,4507.7,0.84433]
[1759950909544,35.15995808,4507.8,4507.7,0.84433]
[1759950909847,38.10016019,4507.8,4507.7,0.84433]
[1759950910044,38.10282934,4507.8,4507.7,0.8469246]
[1759950910245,38.10282934,4507.8,4507.7,1.1381246]
[1759950910644,38.10282934,4507.8,4507.7,0.8469246]
[1759950911342,0.52562723,4507.8,4507.7,1.4486246]
[1759950912145,0.52562723,4507.8,4507.7,1.1381246]
[1759950913743,0.52562723,4507.8,4507.7,1.4486246]
[1759950914143,0.52562723,4507.8,4507.3,0.50027678]
[1759950914450,0.52562723,4507.8,4506.2,0.89058402]
[1759950914451,1.0686,4506.3,4506.2,0.89058402]
[1759950914644,0.516,4506.6,4506.5,0.39933]
[1759950914851,1.2916,4506.6,4506.5,0.69053]
[1759950915240,1.2916,4506.6,4506.5,0.69230934]
[1759950915645,0.8226,4506.6,4506.5,0.69230934]
[1759950915849,0.223,4506.6,4506.5,1.19090934]
[1759950916449,1.0686,4507.1,4507.0,1.13559]
[1759950916952,0.293,4507.1,4507.0,1.63419]
[1759950917146,0.5996,4507.1,4507.0,1.63419]
[1759950917454,0.5996,4507.6,4507.5,0.9244]
[1759950918044,0.00266915,4507.8,4507.7,1.00093]
[1759950918045,0.29566915,4507.8,4507.7,1.00093]
[1759950918249,0.60226915,4507.8,4507.7,1.44603]
[1759950918551,1.07126915,4507.8,4507.7,1.44603]
[1759950918751,1.59446002,4507.8,4507.7,1.44603]
[1759950919546,1.59446002,4507.8,4507.7,1.94208896]
[1759950919951,1.59446002,4507.8,4507.7,1.63158896]
[1759950920654,1.59446002,4507.8,4507.7,0.89528896]
[1759950921451,1.59446002,4507.8,4507.7,0.39923]
[1759950922364,1.59446002,4507.8,4507.4,0.4857849]
[1759950922365,1.2121,4507.5,4507.4,0.4857849]
[1759950922557,1.95829087,4507.5,4507.4,0.8850349]
[1759950922750,4.8546249,4507.5,4507.4,0.8850349]
[1759950923952,4.7111249,4507.5,4507.4,0.8850349]
[1759950924154,4.7111249,4507.5,4507.4,1.6213349]
[1759950924354,0.74619087,4507.5,4507.4,1.9318349]
[1759950924660,1.34579087,4507.5,4507.4,1.9318349]
[1759950924846,1.81479087,4507.5,4507.4,1.6213349]
[1759950925248,1.34579087,4507.5,4507.4,1.9318349]
[1759950925653,1.81479087,4507.5,4507.4,1.9318349]
[1759950926062,1.03919087,4507.5,4507.4,1.9318349]
[1759950926561,1.34579087,4507.5,4507.4,1.9318349]
[1759950927659,1.03919087,4507.5,4507.4,1.9318349]
[1759950928164,1.34579087,4507.5,4507.4,1.9318349]
[1759950928364,1.81479087,4507.5,4507.4,0.8850349]
[1759950928664,1.2916,4507.5,4507.4,0.8850349]
[1759950929564,4.78408454,4507.5,4507.4,0.4857849]
[1759950931259,4.11098454,4507.5,4507.4,0.4857849]
[1759950931461,4.64058454,4507.5,4507.4,0.4857849]
[1759950931660,4.78408454,4507.5,4507.4,0.4857849]
[1759950932154,4.78328454,4507.5,4507.4,0.4857849]
[1759950932555,0.0976,4506.0,4505.9,0.4451]
[1759950932762,0.3206,4506.0,4505.1,0.4451]
[1759950933059,0.0976,4505.8,4505.7,0.3994]
[1759950933364,2.99429837,4505.8,4505.7,0.3994]
[1759950933562,0.39941,4505.7,4505.0,0.39946]
[1759950933859,0.0906,4505.1,4505.0,0.39946]
[1759950934063,0.3136,4505.1,4505.0,0.39946]
[1759950934265,0.3419,4505.1,4505.0,0.39946]
[1759950934564,0.3419,4505.1,4505.0,0.40191241]
[1759950935965,0.3419,4505.1,4505.0,0.84701241]
[1759950936165,0.3419,4505.1,4505.0,0.97383812]
[1759950936965,0.3136,4505.1,4505.0,0.97383812]
[1759950937564,0.3136,4505.1,4505.0,1.16193812]
[1759950937960,0.3136,4505.1,4505.0,1.03511241]
[1759950938761,0.2683,4505.1,4505.0,1.32631241]
[1759950938954,0.315,4505.1,4505.0,1.32631241]
[1759950939463,0.223,4505.1,4505.0,1.62061241]
[1759950940168,0.14358117,4505.8,4505.6,1.40951]
[1759950940359,0.0934,4506.9,4506.8,0.8254]
[1759950940563,2.97711314,4506.9,4506.8,0.8254]
[1759950940965,3.11450535,4506.9,4506.8,0.8254]
[1759950941166,3.11450535,4506.9,4506.6,0.39932]
[1759950941365,0.0934,4506.7,4506.6,0.39932]
[1759950941664,0.0934,4506.7,4506.0,0.39938]
[1759950941665,0.1226,4506.1,4506.0,0.39938]
[1759950942068,0.1222,4505.6,4505.5,0.39942]
[1759950942262,0.3452,4505.6,4505.5,0.39942]
[1759950942459,3.26665608,4505.6,4505.5,0.39942]
[1759950942659,0.121,4505.5,4505.3,0.39943]
[1759950942961,3.44187608,4505.5,4505.0,0.00245241]
[1759950943270,0.39943,4505.4,4505.0,0.00245241]
[1759950943768,2.87768744,4505.3,4505.1,0.39945]
[1759950944268,0.39943,4505.4,4505.1,0.39945]
[1759950944464,2.85693988,4505.5,4505.2,0.39944]
[1759950944669,2.85693988,4505.3,4505.2,0.4582]
[1759950944870,0.223,4505.4,4505.2,0.39945]
[1759950945167,0.223,4505.4,4505.0,0.18845241]
[1759950945168,2.82560162,4505.3,4505.0,0.00245241]
[1759950945366,2.82560162,4505.3,4505.1,0.39946]
[1759950947871,2.82560162,4505.3,4505.2,0.4582]
[1759950949471,2.82560162,4505.3,4505.1,0.39946]
[1759950949975,2.82560162,4505.3,4505.1,0.85766]
[1759950950176,2.82560162,4505.3,4505.1,0.39946]
[1759950952269,2.82560162,4505.3,4505.0,0.00245241]
[1759950952867,2.82560162,4505.3,4505.0,0.40191241]
[1759950953166,3.22504162,4505.3,4505.0,0.00245241]
[1759950953669,3.22504162,4505.3,4505.0,0.40191241]
[1759950955676,2.82560162,4505.3,4505.0,0.00245241]
[1759950955878,2.82560162,4505.3,4505.2,0.39945]
[1759950958275,3.34491203,4505.3,4505.2,0.39945]
[1759950958482,3.34491203,4505.3,4505.2,0.85765]
[1759950958883,3.34491203,4505.3,4505.2,0.39945]
[1759950959184,3.56791203,4505.3,4505.1,0.39946]
[1759950959378,4.55379141,4505.2,4504.0,0.18329759]
[1759950959686,3.56619096,4505.1,4504.9,0.39947]
[1759950959888,0.74231041,4505.0,4504.9,0.39947]
[1759950960379,3.66570138,4505.0,4504.9,0.40124258]
[1759950960577,3.44270138,4505.0,4504.9,0.40124258]
[1759950960778,3.66570138,4505.0,4504.9,0.40124258]
[1759950962687,3.66570138,4505.0,4504.9,0.85944258]
[1759950962884,3.66570138,4505.0,4504.9,1.16904258]
[1759950963186,3.66570138,4505.0,4504.9,0.40124258]
[1759950964484,3.66570138,4505.0,4504.9,0.85944258]
[1759950966689,3.66570138,4505.0,4504.9,0.40124258]
[1759950969089,3.44270138,4505.0,4504.9,0.40124258]
[1759950969390,3.66570138,4505.0,4504.9,0.40124258]
[1759950969792,3.76850138,4505.0,4504.1,0.78538]
[1759950969987,0.1028,4504.7,4503.9,0.9989]
[1759950970192,0.4318,4504.1,4504.0,0.39955]
[1759950970395,1.17411041,4504.1,4504.0,0.39955]
[1759950970594,4.11752027,4504.1,4504.0,0.39955]
[1759950970795,4.12007264,4504.1,4504.0,0.40221023]
[1759950971988,0.52186278,4504.1,4504.0,6.59131023]
[1759950972392,0.00255237,4504.1,4504.0,6.59131023]
[1759950974097,0.16705237,4504.1,4504.0,6.59131023]
[1759950974990,0.33155237,4504.1,4504.0,6.59131023]
[1759950975190,0.33155237,4504.1,4504.0,1.00941023]
[1759950975492,0.85208493,4504.1,4504.0,1.00941023]
[1759950975687,0.52308493,4504.1,4504.0,1.59131023]
[1759950975892,0.00255237,4504.1,4504.0,1.59131023]
[1759950976598,0.00255237,4504.1,4504.0,6.59131023]
[1759950979994,0.00255237,4504.1,4504.0,7.62205298]
[1759950981097,0.1028,4505.1,4504.0,7.62205298]
[1759950981098,0.1028,4505.6,4505.2,0.39944]
[1759950981298,0.329,4505.2,4504.9,0.39947]
[1759950981602,3.34115428,4504.9,4504.6,0.4239]
[1759950981903,0.329,4504.6,4504.5,1.29361]
[1759950982197,1.07274467,4504.6,4504.5,1.29361]
[1759950982407,1.07449334,4504.6,4504.5,1.58861]
[1759950986404,0.85149334,4504.6,4504.5,1.58861]
[1759950986701,0.85149334,4504.6,4504.5,1.29361]
[1759950987091,0.95429334,4504.6,4504.5,1.00671]
[1759950987295,0.95429334,4504.6,4504.5,0.82341]
[1759950987494,0.85149334,4504.6,4504.5,1.00671]
[1759950987900,0.95429334,4504.6,4504.5,1.00671]
[1759950988503,0.85149334,4504.6,4504.5,1.00671]
[1759950989007,0.85149334,4504.6,4504.5,1.29361]
[1759950991102,0.68699334,4504.6,4504.5,1.58861]
[1759950991300,1.07449334,4504.6,4504.5,1.29361]
[1759950991506,2.20803609,4504.6,4504.5,0.39951]
[1759950991810,5.15898372,4504.6,4504.5,0.39951]
[1759950992600,0.4318,4504.1,4504.0,0.00266023]
[1759950992795,1.46254275,4504.1,4504.0,0.40221023]
[1759950992995,5.10547997,4504.1,4504.0,0.40221023]
[1759950994415,4.07473722,4504.1,4504.0,0.82611023]
[1759950994598,0.84974467,4504.1,4504.0,1.59131023]
[1759950994803,1.17554467,4504.1,4504.0,0.00266023]
[1759950995005,4.0232573,4504.1,4504.0,0.00266023]
[1759950995507,4.0232573,4504.1,4504.0,0.42656023]
[1759950995702,4.0232573,4504.1,4504.0,0.60986023]
[1759950996507,4.0232573,4504.1,4504.0,0.00266023]
[1759950997106,3.9204573,4504.1,4504.0,0.71346023]
[1759950997422,0.00174867,4504.6,4504.5,1.58861]
[1759950997710,3.2272505,4504.6,4504.5,1.58861]
[1759950998011,3.9131436,4504.6,4504.5,1.58861]
[1759950998517,3.6901436,4504.6,4504.5,1.58861]
[1759950998707,3.9131436,4504.6,4504.5,1.58861]
[1759951000111,3.9131436,4504.6,4504.1,0.39954]
[1759951000112,0.3809,4504.4,4504.1,0.39954]
[1759951000420,0.2902,4504.1,4504.0,1.29311023]
[1759951002116,0.3793,4504.1,4504.0,1.00181023]
[1759951002419,0.66654653,4504.1,4504.0,1.60671023]
[1759951002917,0.1451,4504.1,4504.0,2.63745298]
[1759951003314,0.28694867,4504.6,4504.5,1.33681]
[1759951003510,1.03139645,4504.6,4504.5,1.33681]
[1759951003712,1.03139645,4504.6,4504.5,1.63711]
[1759951004317,0.80839645,4504.6,4504.5,1.63711]
[1759951004513,1.03139645,4504.6,4504.5,1.63711]
[1759951005211,1.12049645,4504.6,4504.5,0.39951]
[1759951005618,1.12049645,4504.6,4504.5,0.85281]
[1759951005814,1.12049645,4504.6,4504.5,1.63711]
[1759951005815,0.52319645,4504.6,4504.5,1.63711]
[1759951006122,0.00174867,4504.6,4504.5,1.63711]
[1759951008422,0.37604867,4504.6,4504.5,0.6327]
[1759951008622,0.89742969,4504.6,4504.5,0.6327]
[1759951009018,0.80832969,4504.6,4504.5,0.6327]
[1759951010118,0.80832969,4504.6,4504.4,0.39952]
[1759951010421,0.80658102,4504.5,4504.4,1.45772]
[1759951012417,1.02958102,4504.5,4504.4,1.45772]
[1759951012614,0.52138102,4504.5,4504.4,2.48846275]
[1759951014320,0.66398102,4504.5,4504.4,2.48846275]
[1759951016522,0.80658102,4504.5,4504.4,2.48846275]
[1759951016722,0.66398102,4504.5,4504.4,2.48846275]
[1759951017127,0.52138102,4504.5,4504.4,2.48846275]
[1759951017430,0.14434867,4504.6,4504.5,1.18381]
[1759951017627,0.14434867,4504.6,4504.5,1.63711]
[1759951017825,0.80822305,4504.6,4504.5,1.63711]
[1759951018030,0.89732305,4504.6,4504.5,1.03221]
[1759951018623,0.89732305,4504.6,4504.5,0.85281]
[1759951019122,0.80822305,4504.6,4504.5,1.33681]
[1759951019326,0.89732305,4504.6,4504.5,1.03221]
[1759951019521,0.80822305,4504.6,4504.5,1.33681]
[1759951019722,0.80822305,4504.6,4504.5,1.03221]
[1759951019931,10.16043132,4504.6,4504.0,0.18086023]
[1759951020223,10.16043132,4504.6,4503.5,0.186]
[1759951020224,0.2852,4504.1,4503.5,0.186]
[1759951020424,0.3743,4503.7,4503.6,0.4533]
[1759951020621,0.3743,4503.7,4503.5,0.186]
[1759951020622,1.31594275,4503.7,4503.1,0.4533]
[1759951020929,0.2852,4503.2,4503.1,0.85293]
[1759951021125,0.2852,4503.2,4503.1,2.49068016]
[1759951021528,0.223,4503.4,4503.3,0.70422]
[1759951021724,0.37604867,4504.6,4504.5,0.39951]
[1759951022031,3.8360417,4504.6,4504.5,1.03221]
[1759951022228,3.7469417,4504.6,4504.5,1.03221]
[1759951022423,1.02966722,4504.6,4504.5,1.33681]
[1759951023519,1.02966722,4504.6,4504.0,0.1794]
[1759951023520,0.3743,4504.1,4504.0,0.39955]
[1759951023720,0.89402577,4504.1,4504.0,0.39955]
[1759951024323,0.2317,4504.0,4503.9,0.39955]
[1759951024528,1.11702577,4504.0,4503.9,0.39955]
[1759951024729,1.11702577,4504.0,4503.9,1.15745]
[1759951024730,3.90850381,4504.0,4503.9,1.15745]
[1759951024925,3.99760381,4504.0,4503.9,0.39955]
[1759951025332,3.99760381,4504.0,4503.9,0.85285]
[1759951025526,3.99760381,4504.0,4503.9,0.39955]
[1759951026726,3.90850381,4504.0,4503.9,1.15745]
[1759951027035,3.90850381,4504.0,4503.9,0.85285]
[1759951027224,3.99760381,4504.0,4503.9,0.39955]
[1759951027425,4.93924656,4504.0,4503.8,0.39956]
[1759951027733,4.93924656,4504.0,4503.1,0.40173741]
[1759951027734,0.3743,4503.2,4503.1,0.40173741]
[1759951027921,0.5973,4503.2,4503.1,0.40173741]
[1759951028124,3.46802567,4503.2,4503.1,0.00210741]
[1759951029736,0.262,4502.9,4502.8,0.39966]
[1759951029924,0.262,4502.1,4502.0,1.00263]
[1759951030232,0.485,4502.1,4502.0,0.99583]
[1759951030535,0.485,4502.1,4502.0,0.39973]
[1759951030536,0.5669,4502.1,4502.0,0.39973]
[1759951030731,0.485,4502.1,4502.0,1.8557636]
[1759951030938,0.485,4502.1,4502.0,2.5880636]
[1759951031237,3.4331255,4502.1,4502.0,0.99762085]
[1759951033838,3.4331255,4502.1,4502.0,1.27742085]
[1759951034743,3.4331255,4502.1,4502.0,1.55732085]
[1759951035232,0.3439,4503.2,4503.1,0.39963]
[1759951035439,0.5669,4503.2,4503.1,0.39963]
[1759951035637,1.40278344,4503.2,4502.9,0.39965]
[1759951035937,0.3439,4503.0,4502.9,0.39965]
[1759951036140,0.55008338,4503.0,4502.9,0.39965]
[1759951036438,3.47389077,4503.0,4502.9,0.39965]
[1759951037232,3.69689077,4503.0,4502.9,0.82315]
[1759951037832,3.69689077,4503.0,4502.9,0.39965]
[1759951039637,3.47389077,4503.0,4502.9,0.39965]
[1759951039839,3.69689077,4503.0,4502.9,0.39965]
[1759951043743,3.69689077,4503.0,4502.9,0.82315]
[1759951043938,3.18580739,4503.0,4502.9,1.10295]
[1759951044441,3.40880739,4503.0,4502.9,1.10295]
[1759951044741,3.49070739,4503.0,4502.9,0.82315]
[1759951045143,3.49070739,4503.0,4502.9,0.39965]
[1759951045835,3.40880739,4503.0,4502.9,1.10295]
[1759951046038,2.92380739,4503.0,4502.9,1.38285]
[1759951046235,3.14680739,4503.0,4502.9,1.38285]
[1759951046543,3.27780739,4503.0,4502.9,1.38285]
[1759951047043,3.14680739,4503.0,4502.9,1.38285]
[1759951047245,3.27780739,4503.0,4502.9,1.38285]
[1759951049136,3.05480739,4503.0,4502.9,1.38285]
[1759951049340,3.27780739,4503.0,4502.9,1.38285]
[1759951049948,3.40880739,4503.0,4502.9,1.38285]
[1759951051344,3.49070739,4503.0,4502.9,0.82315]